fUSD/lending_fUSD_20240301
["ID","MTS","AMOUNT","RATE_DAILY","PERIOD"]
[315937523,1709293119020,-500.0,0.00022262,2]
[315937524,1709293119044,-500.0,0.00022262,2]
[315937525,1709293119067,-500.0,0.00022262,2]
[315937526,1709293119090,-564.44,0.00022262,2]
[315937527,1709293119113,-500.0,0.00022262,2]
[315937528,1709293119138,-500.0,0.00022262,2]
[315937529,1709293119164,-500.0,0.00022262,2]
[315937530,1709293119188,-500.0,0.00022262,2]
[315937531,1709293119211,-674.86,0.00022262,2]
[315937532,1709293119235,-200.0,0.00022276,2]
[315937533,1709293119260,-800.0,0.00022276,2]
[315937534,1709293119289,-800.0,0.00022283,2]
[315937535,1709293119314,-1000.0,0.00022299,2]
[315937536,1709293119336,-424.53,0.000223,2]
[315937537,1709293119360,-207.49,0.00022307,2]
[315937538,1709293119384,-158.24,0.00022329,2]
[315937539,1709293119407,-5069.1801,0.00022336,2]
[315937540,1709293119430,-314.43125303,0.00022349,2]
[315937541,1709293119453,-200.0,0.00022388,2]
[315937542,1709293119477,-8645.82324546,0.000224,2]
[315937546,1709293598530,-733.27,0.00018981,2]
[315937547,1709293598552,-1907.18,0.00021184,2]
[315937548,1709293598575,-328.0,0.00021208,2]
[315937549,1709293598597,-6526.47,0.00021239,2]
[315937550,1709293598620,-733.27,0.00021245,2]
[315937551,1709293598760,-946.47381297,0.00021306,2]
[315937552,1709293598785,-159.50865882,0.0002136,2]
[315937553,1709293598811,-88665.82752821,0.0002143,2]
[315937554,1709293599915,-100000.0,0.0002143,2]
[315937555,1709293607314,-11334.17247179,0.0002143,2]
[315937556,1709293607336,-578.21,0.0002146,2]
[315937557,1709293607358,-239.67,0.00021471,2]
[315937558,1709293607379,-499.99,0.00021471,2]
[315937559,1709293607401,-250.0,0.00021513,2]
[315937560,1709293607423,-5133.63546303,0.000219,2]
[315937561,1709293607445,-407.37,0.000219,2]
[315937562,1709293607467,-920.07,0.000219,2]
[315937563,1709293607488,-407.37,0.000219,2]
[315937564,1709293607510,-152.85,0.00021918,2]
[315937565,1709293607534,-191.23,0.00021918,2]
[315937566,1709293607556,-191.23,0.00022033,2]
[315937567,1709293607577,-1209.0685,0.00022044,2]
[315937568,1709293607599,-3113.3646,0.00022044,2]
[315937569,1709293607619,-1000.0,0.00022046,2]
[315937570,1709293607641,-320.33936012,0.00022055,2]
[315937571,1709293607664,-201.0,0.00022134,2]
[315937572,1709293607686,-751.79,0.00022143,2]
[315937573,1709293607707,-500.0,0.00022143,2]
[315937574,1709293607731,-1576.67,0.00022143,2]
[315937575,1709293607753,-500.0,0.00022143,2]
[315937576,1709293607778,-5097.6,0.00022143,2]
[315937577,1709293607800,-500.0,0.00022143,2]
[315937578,1709293607823,-792.29,0.00022143,2]
[315937579,1709293607846,-500.0,0.00022143,2]
[315937580,1709293607867,-763.35,0.00022143,2]
[315937581,1709293607890,-500.0,0.00022143,2]
[315937582,1709293607912,-500.0,0.00022143,2]
[315937583,1709293607935,-645.36,0.00022143,2]
[315937584,1709293607958,-500.0,0.00022143,2]
[315937585,1709293607981,-500.02,0.00022143,2]
[315937586,1709293608004,-1500.68,0.00022143,2]
[315937587,1709293608027,-1093.07,0.00022143,2]
[315937588,1709293608051,-1322.37,0.00022143,2]
[315937589,1709293608072,-500.0,0.00022143,2]
[315937590,1709293608094,-500.0,0.00022143,2]
[315937591,1709293608115,-784.27,0.00022143,2]
[315937592,1709293608137,-543.75,0.00022143,2]
[315937593,1709293608293,-500.0,0.00022143,2]
[315937594,1709293608317,-500.0,0.00022143,2]
[315937595,1709293608339,-5847.08,0.00022143,2]
[315937596,1709293608362,-1383.23,0.00022143,2]
[315937597,1709293608384,-4473.7,0.00022143,2]
[315937598,1709293608405,-568.94371735,0.00022143,2]
[315937599,1709293608428,-768.6,0.00022143,2]
[315937600,1709293608451,-1397.81,0.00022143,2]
[315937601,1709293608472,-500.0,0.00022143,2]
[315937602,1709293608495,-500.0,0.00022143,2]
[315937603,1709293608517,-500.0,0.00022143,2]
[315937604,1709293608539,-500.0,0.00022143,2]
[315937605,1709293608561,-500.0,0.00022143,2]
[315937606,1709293608583,-3991.87,0.00022143,2]
[315937607,1709293608605,-500.0,0.00022143,2]
[315937608,1709293608630,-1238.79,0.00022143,2]
[315937609,1709293608652,-712.87,0.00022143,2]
[315937610,1709293608675,-500.0,0.00022144,2]
[315937611,1709293608696,-500.0,0.00022144,2]
[315937612,1709293608718,-500.0,0.00022144,2]
[315937613,1709293608741,-735.73,0.00022144,2]
[315937614,1709293608768,-497.38,0.00022144,2]
[315937615,1709293608790,-500.0,0.00022144,2]
[315937616,1709293608812,-500.0,0.00022144,2]
[315937617,1709293608836,-500.0,0.00022144,2]
[315937618,1709293608859,-776.58,0.00022144,2]
[315937619,1709293608881,-500.0,0.00022144,2]
[315937620,1709293608903,-500.0,0.00022144,2]
[315937621,1709293608925,-500.0,0.00022144,2]
[315937622,1709293608948,-500.0,0.00022144,2]
[315937623,1709293608970,-500.0,0.00022144,2]
[315937624,1709293608992,-500.0,0.00022144,2]
[315937625,1709293609015,-500.0,0.00022144,2]
[315937626,1709293609037,-500.0,0.00022144,2]
[315937627,1709293609058,-500.0,0.00022144,2]
[315937628,1709293609079,-500.0,0.00022144,2]
[315937629,1709293609101,-577.68,0.00022144,2]
[315937630,1709293609122,-500.0,0.00022144,2]
[315937631,1709293609144,-740.64,0.00022144,2]
[315937632,1709293609166,-500.0,0.00022144,2]
[315937633,1709293609188,-500.0,0.00022144,2]
[315937634,1709293609210,-500.0,0.00022144,2]
[315937635,1709293609232,-500.0,0.00022144,2]
[315937636,1709293609255,-500.0,0.00022144,2]
[315937637,1709293609278,-620.59,0.00022144,2]
[315937638,1709293609299,-500.0,0.00022144,2]
[315937639,1709293609321,-500.0,0.00022144,2]
[315937640,1709293609344,-500.0,0.00022144,2]
[315937641,1709293609366,-547.9,0.00022144,2]
[315937642,1709293609388,-500.0,0.00022144,2]
[315937643,1709293609409,-500.0,0.00022144,2]
[315937644,1709293609430,-500.0,0.00022144,2]
[315937645,1709293609451,-500.0,0.00022144,2]
[315937646,1709293609473,-503.8,0.00022144,2]
[315937647,1709293609494,-182.03691519,0.00022144,2]
[315937648,1709293609516,-500.0,0.00022144,2]
[315937649,1709293609537,-500.0,0.00022144,2]
[315937650,1709293609559,-500.0,0.00022144,2]
[315937651,1709293609580,-500.0,0.00022144,2]
[315937652,1709293609601,-500.0,0.00022144,2]
[315937653,1709293609622,-500.0,0.00022144,2]
[315937654,1709293609642,-500.0,0.00022144,2]
[315937655,1709293609665,-500.0,0.00022144,2]
[315937656,1709293609688,-500.0,0.00022144,2]
[315937657,1709293609709,-500.0,0.00022144,2]
[315937658,1709293609731,-500.0,0.00022144,2]
[315937659,1709293609753,-500.0,0.00022144,2]
[315937660,1709293609779,-500.0,0.00022144,2]
[315937661,1709293609801,-500.0,0.00022144,2]
[315937662,1709293609824,-500.0,0.00022144,2]
[315937663,1709293609846,-500.0,0.00022144,2]
[315937664,1709293609872,-500.0,0.00022144,2]
[315937665,1709293609894,-576.08171055,0.00022144,2]
[315937666,1709293609915,-613.58816767,0.00022144,2]
[315937667,1709293609936,-224.3090943,0.00022144,2]
[315937668,1709293610049,-275.6909057,0.00022144,2]
[315937669,1709293610072,-500.0,0.00022144,2]
[315937670,1709293610094,-500.0,0.00022144,2]
[315937671,1709293610117,-500.0,0.00022144,2]
[315937672,1709293610139,-500.0,0.00022144,2]
[315937673,1709293610161,-500.0,0.00022144,2]
[315937674,1709293610183,-500.0,0.00022144,2]
[315937675,1709293610206,-500.0,0.00022144,2]
[315937676,1709293610228,-500.0,0.00022144,2]
[315937677,1709293610252,-500.0,0.00022144,2]
[315937678,1709293610276,-500.0,0.00022144,2]
[315937679,1709293610299,-500.0,0.00022144,2]
[315937680,1709293610320,-500.0,0.00022144,2]
[315937681,1709293610343,-578.75,0.00022144,2]
[315937682,1709293610365,-500.0,0.00022144,2]
[315937683,1709293610387,-634.54,0.00022144,2]
[315937684,1709293610409,-500.0,0.00022144,2]
[315937685,1709293610431,-500.0,0.00022144,2]
[315937686,1709293610455,-500.0,0.00022144,2]
[315937687,1709293610477,-500.0,0.00022144,2]
[315937688,1709293610500,-544.22,0.00022144,2]
[315937689,1709293610524,-500.0,0.00022144,2]
[315937690,1709293610547,-503.32781263,0.00022144,2]
[315937691,1709293610849,-500.0,0.00022144,2]
[315937692,1709293610873,-505.42249261,0.00022144,2]
[315937693,1709293610895,-500.0,0.00022144,2]
[315937694,1709293610917,-508.72978219,0.00022144,2]
[315937695,1709293610939,-500.0,0.00022144,2]
[315937696,1709293610961,-526.78,0.00022144,2]
[315937697,1709293610985,-500.0,0.00022144,2]
[315937698,1709293611007,-500.0,0.00022144,2]
[315937699,1709293611029,-500.0,0.00022144,2]
[315937700,1709293611052,-500.0,0.00022144,2]
[315937701,1709293611073,-500.0,0.00022144,2]
[315937702,1709293611096,-500.0,0.00022144,2]
[315937703,1709293611118,-500.0,0.00022144,2]
[315937704,1709293611139,-500.0,0.00022144,2]
[315937705,1709293611162,-191.23,0.00022149,2]
[315937706,1709293611183,-500.0,0.00022155,2]
[315937707,1709293611205,-759.96,0.00022155,2]
[315937708,1709293611227,-502.92257383,0.00022155,2]
[315937709,1709293611248,-500.0,0.00022155,2]
[315937710,1709293611271,-500.0,0.00022155,2]
[315937711,1709293611293,-509.55,0.00022155,2]
[315937712,1709293611314,-500.0,0.00022155,2]
[315937713,1709293611343,-500.0,0.00022155,2]
[315937714,1709293611365,-500.0,0.00022155,2]
[315937715,1709293611387,-500.0,0.00022155,2]
[315937716,1709293611409,-500.0,0.00022155,2]
[315937717,1709293611431,-502.6503181,0.00022155,2]
[315937718,1709293611455,-500.0,0.00022155,2]
[315937719,1709293611479,-500.0,0.00022155,2]
[315937720,1709293611502,-502.53153823,0.00022155,2]
[315937721,1709293611526,-681.05,0.00022155,2]
[315937722,1709293611548,-500.0,0.00022155,2]
[315937723,1709293611571,-500.0,0.00022155,2]
[315937724,1709293611594,-500.0,0.00022155,2]
[315937725,1709293611616,-500.0,0.00022155,2]
[315937726,1709293611639,-500.0,0.00022155,2]
[315937727,1709293611662,-500.0,0.00022155,2]
[315937728,1709293611686,-500.0,0.00022155,2]
[315937729,1709293611711,-500.0,0.00022155,2]
[315937730,1709293611735,-500.0,0.00022155,2]
[315937731,1709293611759,-502.66825008,0.00022155,2]
[315937732,1709293611786,-519.08919277,0.00022155,2]
[315937733,1709293611812,-643.81,0.00022155,2]
[315937734,1709293611835,-500.0,0.00022155,2]
[315937735,1709293611861,-500.0,0.00022155,2]
[315937736,1709293611884,-500.0,0.00022155,2]
[315937737,1709293611907,-500.0,0.00022155,2]
[315937738,1709293611929,-500.0,0.00022155,2]
[315937739,1709293611952,-500.0,0.00022155,2]
[315937740,1709293611976,-500.0,0.00022155,2]
[315937741,1709293612005,-575.85446846,0.00022155,2]
[315937742,1709293612031,-1222.95,0.00022155,2]
[315937743,1709293612237,-500.0,0.00022155,2]
[315937744,1709293612261,-500.0,0.00022155,2]
[315937745,1709293612283,-500.0,0.00022155,2]
[315937746,1709293612305,-500.0,0.00022155,2]
[315937747,1709293612330,-823.01,0.00022155,2]
[315937748,1709293612352,-1683.24,0.00022155,2]
[315937749,1709293612373,-500.0,0.00022155,2]
[315937750,1709293612395,-502.30557788,0.00022155,2]
[315937751,1709293612416,-500.0,0.00022155,2]
[315937752,1709293612438,-502.4152555,0.00022155,2]
[315937753,1709293612461,-500.0,0.00022155,2]
[315937754,1709293612483,-7000.76,0.00022155,2]
[315937755,1709293612505,-592.07,0.00022155,2]
[315937756,1709293612527,-500.0,0.00022155,2]
[315937757,1709293612549,-978.88,0.00022155,2]
[315937758,1709293612570,-500.0,0.00022155,2]
[315937759,1709293612591,-461.16518678,0.00022155,2]
[315937760,1709293612612,-276.36114504,0.00022155,2]
[315937761,1709293612635,-681.86,0.00022155,2]
[315937762,1709293612656,-500.0,0.00022155,2]
[315937763,1709293612679,-3825.25,0.00022155,2]
[315937764,1709293612702,-500.0,0.00022155,2]
[315937765,1709293612724,-500.0,0.00022155,2]
[315937766,1709293612749,-500.0,0.00022155,2]
[315937767,1709293612775,-908.28,0.00022155,2]
[315937768,1709293612797,-500.0,0.00022155,2]
[315937769,1709293612820,-1311.56,0.00022155,2]
[315937770,1709293612842,-502.64927208,0.00022155,2]
[315937771,1709293612865,-500.0,0.00022155,2]
[315937772,1709293612889,-500.0,0.00022155,2]
[315937773,1709293612913,-588.52,0.00022155,2]
[315937774,1709293612937,-500.0,0.00022155,2]
[315937775,1709293612961,-506.01796933,0.00022155,2]
[315937776,1709293612984,-500.0,0.00022155,2]
[315937777,1709293613009,-500.0,0.00022155,2]
[315937778,1709293613085,-1498.29,0.00022155,2]
[315937779,1709293613107,-797.88,0.00022155,2]
[315937780,1709293613129,-843.88,0.00022155,2]
[315937781,1709293613150,-500.0,0.00022155,2]
[315937782,1709293613173,-16706.46,0.00022155,2]
[315937783,1709293613194,-500.0,0.00022155,2]
[315937784,1709293613216,-1666.78,0.00022155,2]
[315937785,1709293613237,-922.79,0.00022155,2]
[315937786,1709293613266,-500.0,0.00022155,2]
[315937787,1709293613287,-500.0,0.00022155,2]
[315937788,1709293613309,-904.87,0.00022155,2]
[315937789,1709293613330,-1269.68,0.00022155,2]
[315937790,1709293613351,-500.0,0.00022155,2]
[315937791,1709293613373,-1852.53,0.00022155,2]
[315937792,1709293613394,-500.0,0.00022155,2]
[315937793,1709293613415,-500.0,0.00022155,2]
[315937794,1709293613437,-700.76825879,0.00022155,2]
[315937795,1709293613650,-14.06174121,0.00022155,2]
[315937796,1709293613673,-752.37,0.00022155,2]
[315937797,1709293613695,-1022.19,0.00022155,2]
[315937798,1709293613717,-1560.24,0.00022155,2]
[315937799,1709293613739,-500.0,0.00022155,2]
[315937800,1709293613762,-823.92,0.00022155,2]
[315937801,1709293613790,-500.0,0.00022155,2]
[315937802,1709293613815,-913.43,0.00022155,2]
[315937803,1709293613837,-682.16,0.00022155,2]
[315937804,1709293613859,-500.0,0.00022155,2]
[315937805,1709293613881,-414.34028481,0.00022155,2]
[315937806,1709293613903,-500.0,0.00022155,2]
[315937807,1709293613924,-500.0,0.00022155,2]
[315937808,1709293613946,-1817.58,0.00022155,2]
[315937809,1709293613967,-500.0,0.00022155,2]
[315937810,1709293613988,-526.94,0.00022155,2]
[315937811,1709293614009,-521.59,0.00022155,2]
[315937812,1709293614031,-2813.86,0.00022155,2]
[315937813,1709293614054,-581.22,0.00022155,2]
[315937814,1709293614076,-885.5,0.00022155,2]
[315937815,1709293614097,-1150.77,0.00022155,2]
[315937816,1709293614119,-500.0,0.00022155,2]
[315937817,1709293614141,-2144.61,0.00022155,2]
[315937818,1709293614163,-500.0,0.00022155,2]
[315937819,1709293614185,-649.5,0.00022155,2]
[315937820,1709293614207,-500.0,0.00022155,2]
[315937821,1709293614230,-500.0,0.00022155,2]
[315937822,1709293614252,-1090.48,0.00022155,2]
[315937823,1709293614280,-1072.73,0.00022155,2]
[315937824,1709293614301,-500.0,0.00022155,2]
[315937825,1709293614326,-500.0,0.00022155,2]
[315937826,1709293614349,-930.3,0.00022155,2]
[315937827,1709293614372,-1270.39,0.00022155,2]
[315937828,1709293614394,-500.0,0.00022155,2]
[315937829,1709293614416,-500.0,0.00022155,2]
[315937830,1709293614438,-701.84,0.00022155,2]
[315937831,1709293614460,-150.0,0.00022155,2]
[315937832,1709293614481,-2316.84,0.00022155,2]
[315937833,1709293614503,-500.0,0.00022155,2]
[315937834,1709293614526,-3107.93,0.00022155,2]
[315937835,1709293614548,-946.42,0.00022155,2]
[315937836,1709293614570,-500.0,0.00022155,2]
[315937837,1709293614591,-500.0,0.00022155,2]
[315937838,1709293614613,-500.0,0.00022155,2]
[315937839,1709293614634,-512.47,0.00022155,2]
[315937840,1709293614660,-500.0,0.00022155,2]
[315937841,1709293614682,-1799.89,0.00022155,2]
[315937842,1709293614704,-1305.73,0.00022155,2]
[315937843,1709293614726,-500.0,0.00022155,2]
[315937844,1709293614748,-500.0,0.00022155,2]
[315937845,1709293614777,-568.68,0.00022155,2]
[315937846,1709293614799,-500.0,0.00022155,2]
[315937847,1709293614821,-1221.9,0.00022155,2]
[315937848,1709293614844,-500.0,0.00022155,2]
[315937849,1709293614868,-500.0,0.00022155,2]
[315937850,1709293614890,-500.0,0.00022155,2]
[315937851,1709293614913,-500.0,0.00022155,2]
[315937852,1709293614937,-705.19,0.00022155,2]
[315937853,1709293614961,-840.38,0.00022155,2]
[315937854,1709293614986,-500.0,0.00022155,2]
[315937855,1709293615010,-500.0,0.00022155,2]
[315937856,1709293615037,-519.13,0.00022155,2]
[315937857,1709293615061,-500.0,0.00022155,2]
[315937858,1709293615084,-1232.5,0.00022155,2]
[315937859,1709293615114,-384.65291911,0.00022155,2]
[315937860,1709293615137,-505.71,0.00022155,2]
[315937861,1709293615160,-830.72,0.00022155,2]
[315937862,1709293615184,-500.0,0.00022155,2]
[315937863,1709293615205,-780.05,0.00022155,2]
[315937864,1709293615229,-4356.21,0.00022155,2]
[315937865,1709293615252,-500.0,0.00022155,2]
[315937866,1709293615277,-587.74,0.00022155,2]
[315937867,1709293615300,-623.44,0.00022155,2]
[315937868,1709293615322,-500.0,0.00022155,2]
[315937869,1709293615344,-863.04,0.00022155,2]
[315937870,1709293615366,-500.0,0.00022155,2]
[315937871,1709293615389,-4159.27,0.00022155,2]
[315937872,1709293615413,-1158.02,0.00022155,2]
[315937873,1709293615435,-601.38,0.00022155,2]
[315937874,1709293615457,-500.0,0.00022155,2]
[315937875,1709293615478,-373.13207113,0.00022155,2]
[315937876,1709293615501,-8201.21,0.00022155,2]
[315937877,1709293615528,-2437.21,0.00022155,2]
[315937878,1709293615550,-561.92,0.00022155,2]
[315937879,1709293615573,-500.0,0.00022155,2]
[315937880,1709293615596,-1601.22,0.00022155,2]
[315937881,1709293615618,-500.0,0.00022155,2]
[315937882,1709293615644,-523.29,0.00022155,2]
[315937883,1709293615680,-564.95,0.00022155,2]
[315937884,1709293615703,-500.0,0.00022155,2]
[315937885,1709293615725,-727.16,0.00022155,2]
[315937886,1709293615750,-1956.45,0.00022155,2]
[315937887,1709293615778,-500.0,0.00022155,2]
[315937888,1709293615802,-1544.01,0.00022155,2]
[315937889,1709293615824,-500.0,0.00022155,2]
[315937890,1709293615849,-929.18,0.00022155,2]
[315937891,1709293615874,-5203.31,0.00022155,2]
[315937892,1709293615896,-660.28,0.00022155,2]
[315937893,1709293615919,-500.0,0.00022155,2]
[315937894,1709293615942,-613.98,0.00022155,2]
[315937895,1709293615965,-544.28,0.00022155,2]
[315937896,1709293615988,-500.0,0.00022155,2]
[315937897,1709293616011,-641.10298374,0.00022155,2]
[315937898,1709293620209,-1775.34,0.00022143,2]
[315937899,1709293620234,-870.44,0.00022143,2]
[315937900,1709293620259,-500.0,0.00022144,2]
[315937901,1709293620284,-500.0,0.00022144,2]
[315937902,1709293620309,-2316.54701626,0.00022155,2]
[315937903,1709293620337,-500.0,0.00022155,2]
[315937904,1709293620361,-1029.46,0.00022155,2]
[315937905,1709293620385,-2708.89,0.00022155,2]
[315937906,1709293620409,-1487.72,0.00022155,2]
[315937907,1709293620432,-500.0,0.00022155,2]
[315937908,1709293620456,-151.0,0.00022155,2]
[315937909,1709293620479,-1283.68,0.00022155,2]
[315937910,1709293620503,-1912.62,0.00022155,2]
[315937911,1709293620530,-1458.14730341,0.00022156,2]
[315937912,1709293620554,-6531.26628096,0.00022156,2]
[315937913,1709293620577,-9804.77,0.000222,2]
[315937914,1709293620620,-183.776,0.00022234,2]
[315937915,1709293620643,-1469.12,0.00022261,2]
[315937916,1709293620666,-631.87,0.00022261,2]
[315937917,1709293620690,-500.0,0.00022261,2]
[315937918,1709293620713,-1759.68,0.00022261,2]
[315937919,1709293620737,-3336.44,0.00022261,2]
[315937920,1709293620760,-867.86,0.00022261,2]
[315937921,1709293620788,-500.0,0.00022261,2]
[315937922,1709293620811,-1145.18,0.00022261,2]
[315937923,1709293620835,-573.2,0.00022261,2]
[315937924,1709293620859,-500.0,0.00022261,2]
[315937925,1709293620884,-500.0,0.00022261,2]
[315937926,1709293620907,-500.0,0.00022261,2]
[315937927,1709293620931,-500.0,0.00022261,2]
[315937928,1709293620955,-500.0,0.00022261,2]
[315937929,1709293620979,-637.18,0.00022261,2]
[315937930,1709293621001,-500.0,0.00022261,2]
[315937931,1709293621028,-500.0,0.00022261,2]
[315937932,1709293621051,-500.0,0.00022261,2]
[315937933,1709293621073,-500.0,0.00022261,2]
[315937934,1709293621095,-200.0,0.00022263,2]
[315937935,1709293621119,-191.23,0.00022264,2]
[315937936,1709293621141,-157.02,0.0002227,2]
[315937937,1709293621163,-413.8,0.0002227,2]
[315937938,1709293621184,-300.0,0.0002227,2]
[315937939,1709293621206,-150.0,0.0002227,2]
[315937940,1709293621228,-333.93,0.0002227,2]
[315937941,1709293621250,-345.0,0.0002227,2]
[315937942,1709293621272,-200.0,0.00022276,2]
[315937943,1709293621294,-800.0,0.00022276,2]
[315937944,1709293621316,-200.0,0.00022288,30]
[315937945,1709293621348,-200.0,0.00022288,30]
[315937946,1709293621374,-200.0,0.00022288,30]
[315937947,1709293621399,-200.0,0.00022288,30]
[315937948,1709293621422,-200.0,0.00022288,30]
[315937949,1709293621446,-191.23,0.00022379,2]
[315937950,1709293621470,-640.58956425,0.00022399,2]
[315937951,1709293621494,-1000.0,0.000224,2]
[315937952,1709293621516,-1701.58,0.000224,2]
[315937953,1709293621540,-200.0,0.0002241,2]
[315937954,1709293621563,-150.99,0.0002241,2]
[315937955,1709293621587,-751.79,0.00022417,2]
[315937956,1709293621609,-500.0,0.00022417,2]
[315937957,1709293621635,-1576.67,0.00022417,2]
[315937958,1709293621658,-500.0,0.00022417,2]
[315937959,1709293621681,-5097.6,0.00022417,2]
[315937960,1709293621704,-500.0,0.00022417,2]
[315937961,1709293621728,-792.29,0.00022417,2]
[315937962,1709293621754,-500.0,0.00022417,2]
[315937963,1709293621782,-763.35,0.00022417,2]
[315937964,1709293621807,-500.0,0.00022417,2]
[315937965,1709293621831,-500.0,0.00022417,2]
[315937966,1709293621855,-645.36,0.00022417,2]
[315937967,1709293621878,-157.58438467,0.00022417,2]
[315937968,1709293621901,-500.02,0.00022417,2]
[315937969,1709293621925,-1500.68,0.00022417,2]
[315937970,1709293621949,-1093.07,0.00022417,2]
[315937971,1709293621972,-1322.37,0.00022417,2]
[315937972,1709293622095,-500.0,0.00022417,2]
[315937973,1709293622119,-500.0,0.00022417,2]
[315937974,1709293622142,-784.27,0.00022417,2]
[315937975,1709293622165,-543.75,0.00022417,2]
[315937976,1709293622188,-500.0,0.00022417,2]
[315937977,1709293622211,-500.0,0.00022417,2]
[315937978,1709293622235,-5847.08,0.00022417,2]
[315937979,1709293622257,-1383.23,0.00022417,2]
[315937980,1709293622282,-4473.7,0.00022417,2]
[315937981,1709293622304,-768.6,0.00022417,2]
[315937982,1709293622326,-1397.81,0.00022417,2]
[315937983,1709293622349,-500.0,0.00022417,2]
[315937984,1709293622371,-500.0,0.00022417,2]
[315937985,1709293622393,-500.0,0.00022417,2]
[315937986,1709293622416,-500.0,0.00022417,2]
[315937987,1709293622441,-500.0,0.00022417,2]
[315937988,1709293622463,-3991.87,0.00022417,2]
[315937989,1709293622484,-377.39071964,0.00022417,2]
[315937990,1709293622506,-1238.79,0.00022417,2]
[315937991,1709293622531,-83.16873081,0.00022417,2]
[315937992,1709293806428,-659.94,0.00019548,2]
[315937993,1709293806453,-153.0,0.00020551,2]
[315937994,1709293806476,-207.0,0.00020551,2]
[315937995,1709293806499,-854.0,0.00020551,2]
[315937996,1709293806522,-250.0,0.00021253,2]
[315937997,1709293806544,-250.0,0.00021418,2]
[315937998,1709293806568,-659.94,0.00021812,2]
[315937999,1709293806590,-7521.8332,0.000219,2]
[315938000,1709293806613,-152.85,0.00021918,2]
[315938001,1709293806637,-153.0,0.00021921,2]
[315938002,1709293806659,-207.0,0.00021921,2]
[315938003,1709293806686,-854.0,0.00021921,2]
[315938004,1709293806712,-150.0,0.00022,2]
[315938005,1709293806736,-355.79,0.00022,2]
[315938006,1709293806759,-689.14,0.00022142,2]
[315938007,1709293806782,-500.0,0.00022142,2]
[315938008,1709293806805,-500.0,0.00022142,2]
[315938009,1709293806830,-1445.28,0.00022142,2]
[315938010,1709293806854,-4672.8,0.00022142,2]
[315938011,1709293806878,-500.0,0.00022142,2]
[315938012,1709293806900,-557.02,0.00022142,2]
[315938013,1709293806926,-726.26,0.00022142,2]
[315938014,1709293806949,-500.0,0.00022142,2]
[315938015,1709293806972,-699.74,0.00022142,2]
[315938016,1709293806994,-661.47,0.00022142,2]
[315938017,1709293807016,-500.0,0.00022142,2]
[315938018,1709293807043,-591.58,0.00022142,2]
[315938019,1709293807065,-500.0,0.00022142,2]
[315938020,1709293807087,-1375.63,0.00022142,2]
[315938021,1709293807109,-500.0,0.00022142,2]
[315938022,1709293807130,-575.89,0.00022142,2]
[315938023,1709293807153,-1001.98,0.00022142,2]
[315938024,1709293807175,-1212.18,0.00022142,2]
[315938025,1709293807198,-500.0,0.00022142,2]